fUSD/lending_fUSD_20260324
["ID","MTS","AMOUNT","RATE_DAILY","PERIOD"]
[408881512,1774384045957,-500.0,0.00015199,2]
[408881513,1774384045978,-500.0,0.00015199,2]
[408881514,1774384045998,-500.0,0.00015199,2]
[408881515,1774384046018,-174.61919141,0.00015199,2]
[408881516,1774384046037,-200.0,0.00015199,2]
[408881517,1774384046061,-416.73,0.00015352,2]
[408881518,1774384046083,-416.73570855,0.00015465,2]
[408881519,1774384046104,-4000.0,0.00015507,2]
[408881520,1774384046125,-150.0,0.00015509,2]
[408881521,1774384046146,-2076.01448125,0.0001558,2]
[408881522,1774384047123,-250.0,0.00015199,2]
[408881523,1774384047147,-58.39670804,0.0001558,2]
[408881524,1774384047326,-10000.0,0.0001558,2]
[408881525,1774384048956,-1281.61307877,0.0001558,2]
[408881526,1774384048977,-979.16666667,0.00015585,2]
[408881527,1774384048996,-160.0,0.00015585,2]
[408881528,1774384049015,-160.0,0.00015585,2]
[408881529,1774384049035,-160.0,0.00015585,2]
[408881530,1774384049058,-150.0,0.00015591,2]
[408881531,1774384049080,-150.0,0.000156,2]
[408881532,1774384049101,-6959.22025456,0.00015616,2]
[408881533,1774384061023,-154.29462543,0.00014944,2]
[408881534,1774384061054,-200.0,0.00015,5]
[408881535,1774384061079,-400.0,0.000151,5]
[408881536,1774384061105,-743.50770149,0.00015199,2]
[408881537,1774384061128,-279.9045709,0.00015199,2]
[408881538,1774384061150,-700.0,0.000152,5]
[408881539,1774384061173,-351.78101365,0.000156,2]
[408881540,1774384061196,-760.1238633,0.000156,2]
[408881541,1774384061218,-674.37096826,0.000156,2]
[408881542,1774384061241,-740.04079217,0.000156,2]
[408881543,1774384061262,-4995.9764648,0.00015616,2]
[408881544,1774384112968,-150.0,0.00014789,2]
[408881545,1774384112993,-4782.0,0.000152,2]
[408881546,1774384133937,269.95045179,0.000107,2]
[408881547,1774384140307,4730.05954821,9.5e-05,3]
[408881548,1774384140337,5000.01,9.5e-05,3]
[408881549,1774384140362,5000.01,9.5e-05,3]
[408881550,1774384140387,5000.01,9.5e-05,3]
[408881551,1774384140420,158384.83465381,9.5e-05,3]
[408881566,1774384232562,-500.0,0.00014647,2]
[408881567,1774384232575,-3240.0,0.0001467,2]
[408881568,1774384232588,-500.0,0.00015,2]
[408881569,1774384232600,-1200.0,0.00015199,2]
[408881571,1774384232612,-300.0,0.00015199,2]
[408881573,1774384232625,-300.0,0.00015199,2]
[408881574,1774384232637,-9557.95590374,0.000152,2]
[408881575,1774384232650,-500.0,0.000152,2]
[408881576,1774384232663,-250.72299322,0.000152,2]
[408881577,1774384232676,-150.0,0.000152,2]
[408881578,1774384232688,-1000.0,0.00015259,2]
[408881579,1774384232701,-300.0,0.00015259,2]
[408881580,1774384232714,-684.11547314,0.00015259,2]
[408881581,1774384232728,-684.11547314,0.00015259,2]
[408881582,1774384232740,-684.11547314,0.00015259,2]
[408881583,1774384232753,-684.11547314,0.00015259,2]
[408881584,1774384232765,-684.11547314,0.00015259,2]
[408881585,1774384232777,-684.11547314,0.00015259,2]
[408881586,1774384232789,-684.11547314,0.00015259,2]
[408881587,1774384232801,-684.11547314,0.00015259,2]
[408881588,1774384232813,-684.11547314,0.00015259,2]
[408881589,1774384232826,-684.11547314,0.00015259,2]
[408881590,1774384232838,-684.11547314,0.00015259,2]
[408881591,1774384232851,-684.11547314,0.00015259,2]
[408881592,1774384232865,-684.11547314,0.00015259,2]
[408881593,1774384232880,-684.11547314,0.00015259,2]
[408881594,1774384232891,-684.11547314,0.00015259,2]
[408881595,1774384232903,-684.11547314,0.00015259,2]
[408881596,1774384232915,-684.11547314,0.00015259,2]
[408881597,1774384232927,-684.11547314,0.00015259,2]
[408881598,1774384232939,-684.11547314,0.00015259,2]
[408881599,1774384232952,-684.11547314,0.00015259,2]
[408881600,1774384232964,-684.11547314,0.00015259,2]
[408881601,1774384232978,-684.11547314,0.00015259,2]
[408881602,1774384232992,-684.11547314,0.00015259,2]
[408881603,1774384233004,-684.11547314,0.00015259,2]
[408881604,1774384233017,-684.11547314,0.00015259,2]
[408881605,1774384233028,-684.11547314,0.00015259,2]
[408881606,1774384233041,-684.11547314,0.00015259,2]
[408881607,1774384233053,-684.11547314,0.00015259,2]
[408881608,1774384233065,-684.11547314,0.00015259,2]
[408881609,1774384233079,-684.11547314,0.00015259,2]
[408881610,1774384233094,-684.11547314,0.00015259,2]
[408881611,1774384233108,-684.11547314,0.00015259,2]
[408881612,1774384233121,-684.11547314,0.00015259,2]
[408881613,1774384233132,-684.11547314,0.00015259,2]
[408881614,1774384233144,-684.11547314,0.00015259,2]
[408881615,1774384233157,-684.11547314,0.00015259,2]
[408881616,1774384233168,-684.11547314,0.00015259,2]
[408881617,1774384233181,-684.11547314,0.00015259,2]
[408881618,1774384233194,-684.11547314,0.00015259,2]
[408881619,1774384233207,-684.11547314,0.00015259,2]
[408881620,1774384233223,-684.11547314,0.00015259,2]
[408881621,1774384233235,-684.11547314,0.00015259,2]
[408881622,1774384233247,-684.11547314,0.00015259,2]
[408881623,1774384233259,-684.11547314,0.00015259,2]
[408881624,1774384233272,-684.11547314,0.00015259,2]
[408881625,1774384233284,-684.11547314,0.00015259,2]
[408881626,1774384233297,-684.11547314,0.00015259,2]
[408881627,1774384233311,-684.11547314,0.00015259,2]
[408881628,1774384233323,-684.11547314,0.00015259,2]
[408881629,1774384233335,-684.11547314,0.00015259,2]
[408881630,1774384233347,-684.11547314,0.00015259,2]
[408881631,1774384233356,-684.11547314,0.00015259,2]
[408881632,1774384233366,-684.11547314,0.00015259,2]
[408881633,1774384233375,-684.11547314,0.00015259,2]
[408881634,1774384233384,-684.11547314,0.00015259,2]
[408881635,1774384233394,-684.11547314,0.00015259,2]
[408881636,1774384233404,-684.11547314,0.00015259,2]
[408881637,1774384233413,-684.11547314,0.00015259,2]
[408881638,1774384233423,-684.11547314,0.00015259,2]
[408881639,1774384233433,-684.11547314,0.00015259,2]
[408881640,1774384233443,-684.11547314,0.00015259,2]
[408881641,1774384233452,-684.11547314,0.00015259,2]
[408881642,1774384233844,-684.11547314,0.00015259,2]
[408881643,1774384233880,-692.58077178,0.00015259,2]
[408881644,1774384233901,-692.58077178,0.00015259,2]
[408881645,1774384233911,-692.58077178,0.00015259,2]
[408881646,1774384233922,-692.58077178,0.00015259,2]
[408881647,1774384233933,-692.58077178,0.00015259,2]
[408881648,1774384233943,-692.58077178,0.00015259,2]
[408881649,1774384233952,-692.58077178,0.00015259,2]
[408881650,1774384233961,-692.58077178,0.00015259,2]
[408881651,1774384233970,-692.58077178,0.00015259,2]
[408881652,1774384233981,-692.58077178,0.00015259,2]
[408881653,1774384233990,-692.58077178,0.00015259,2]
[408881654,1774384233999,-692.58077178,0.00015259,2]
[408881655,1774384234009,-692.58077178,0.00015259,2]
[408881656,1774384234018,-692.58077178,0.00015259,2]
[408881657,1774384234027,-692.58077178,0.00015259,2]
[408881658,1774384234036,-692.58077178,0.00015259,2]
[408881659,1774384234046,-692.58077178,0.00015259,2]
[408881660,1774384234054,-692.58077178,0.00015259,2]
[408881661,1774384234065,-692.58077178,0.00015259,2]
[408881662,1774384234074,-692.58077178,0.00015259,2]
[408881663,1774384234083,-692.58077178,0.00015259,2]
[408881664,1774384234092,-692.58077178,0.00015259,2]
[408881665,1774384234101,-692.58077178,0.00015259,2]
[408881666,1774384234112,-692.58077178,0.00015259,2]
[408881667,1774384234122,-692.58077178,0.00015259,2]
[408881668,1774384234131,-692.58077178,0.00015259,2]
[408881669,1774384234140,-59927.18643186,0.0001526,2]
[408881670,1774384234172,-846.20302202,0.0001526,2]
[408881671,1774384234222,-2281.09472897,0.0001526,2]
[408881672,1774384234235,-1895.78926475,0.0001526,2]
[408881673,1774384234246,-4893.99781053,0.0001526,2]
[408881677,1774384238231,-2777.04,0.0001526,2]
[408881678,1774384238286,-3952.06283665,0.0001526,2]
[408881679,1774384238341,-1041.30749209,0.0001526,2]
[408881694,1774384238809,-34.26629998,0.0001526,2]
[408881695,1774384238832,-636.84551718,0.0001526,2]
[408881696,1774384238844,-680211.08123247,0.0001526,2]
[408881697,1774384238853,-5447.2101333,0.00015264,2]
[408881698,1774384238862,-500.0,0.00015273,2]
[408881699,1774384238872,-500.0,0.00015273,2]
[408881700,1774384238881,-500.0,0.00015273,2]
[408881701,1774384238891,-500.0,0.00015273,2]
[408881702,1774384238901,-500.0,0.00015273,2]
[408881703,1774384238910,-500.0,0.00015273,2]
[408881704,1774384238922,-500.0,0.00015273,2]
[408881705,1774384238932,-500.0,0.00015273,2]
[408881706,1774384238942,-14339.95590367,0.00015278,2]
[408881707,1774384238951,-234.84,0.00015291,2]
[408881708,1774384238960,-900.0,0.000153,5]
[408881709,1774384238969,-14339.95590367,0.00015356,2]
[408881710,1774384238979,-1569.0,0.0001536,2]
[408881711,1774384238988,-1100.0,0.000154,5]
[408881712,1774384238997,-14339.95590367,0.00015433,2]
[408881713,1774384239006,-187.95,0.00015441,2]
[408881714,1774384239015,-154.29462543,0.00015467,2]
[408881715,1774384239025,-1369.35670876,0.00015484,2]
[408881716,1774384239034,-200.0,0.000155,5]
[408881717,1774384239043,-14339.95590367,0.00015511,2]
[408881718,1774384239052,-1369.35670874,0.00015582,2]
[408881719,1774384239062,-160.0,0.00015584,2]
[408881720,1774384239071,-160.0,0.00015584,2]
[408881721,1774384239081,-979.16666667,0.00015584,2]
[408881722,1774384239090,-14339.95590367,0.00015589,2]
[408881723,1774384239099,-200.0,0.000156,5]
[408881724,1774384239110,-150.0,0.000156,2]
[408881725,1774384239124,-1460.8275487,0.00015616,2]
[408881726,1774384239134,-500.0,0.00015616,2]
[408881727,1774384239143,-200.0,0.00015616,2]
[408881728,1774384239154,-1586.66850349,0.00015634,2]
[408881729,1774384239163,-13416.02426806,0.00015651,2]
[408881730,1774384239173,-14339.95590367,0.00015667,2]
[408881731,1774384239183,-1000.0,0.00015668,2]
[408881732,1774384239192,-1000.0,0.00015668,2]
[408881733,1774384239202,-1000.0,0.00015668,2]
[408881734,1774384239211,-1000.0,0.00015668,2]
[408881735,1774384239221,-502.7672,0.00015679,2]
[408881736,1774384239231,-1492.76679653,0.0001568,2]
[408881737,1774384239241,-5000.0,0.0001568,2]
[408881738,1774384239251,-1098.4990606,0.0001568,2]
[408881739,1774384239260,-1369.35670874,0.0001568,2]
[408881740,1774384239270,-500.0,0.0001568,2]
[408881741,1774384239279,-179.027303,0.0001568,7]
[408881742,1774384239288,-388.842616,0.0001568,7]
[408881743,1774384239297,-500.0,0.00015686,2]
[408881744,1774384239307,-358.38566764,0.00015686,2]
[408881745,1774384239316,-473.4787547,0.00015686,2]
[408881746,1774384239328,-500.0,0.00015686,2]
[408881747,1774384239338,-500.0,0.00015686,2]
[408881748,1774384239347,-500.0,0.00015686,2]
[408881749,1774384239358,-500.0,0.00015686,2]
[408881750,1774384239368,-205.09745225,0.00015686,2]
[408881751,1774384239378,-500.0,0.00015686,2]
[408881752,1774384239390,-500.0,0.00015686,2]
[408881753,1774384239399,-500.0,0.00015686,2]
[408881754,1774384239410,-500.0,0.00015686,2]
[408881755,1774384239420,-574.17674946,0.00015686,2]
[408881756,1774384239431,-13416.02426806,0.00015687,2]
[408881757,1774384239441,-172.24879032,0.00015693,2]
[408881758,1774384239451,-154.60882327,0.00015693,2]
[408881759,1774384239463,-7931.70487847,0.00015693,2]
[408881760,1774384239473,-2000.0,0.000157,2]
[408881761,1774384239485,-200.0,0.000157,5]
[408881762,1774384239495,-350.0,0.000157,3]
[408881763,1774384239506,-13416.02426806,0.00015722,2]
[408881764,1774384239526,-1098.49906058,0.00015724,2]
[408881765,1774384239536,-150.0,0.00015732,2]
[408881766,1774384239545,-150.0,0.00015737,2]
[408881767,1774384239555,-14339.95590367,0.00015744,2]
[408881768,1774384239565,-181.08010149,0.00015747,2]
[408881769,1774384239575,-200.0,0.00015747,2]
[408881770,1774384239585,-257.95638297,0.00015747,2]
[408881771,1774384239594,-3786.794,0.0001575,2]
[408881772,1774384239604,-175.608,0.0001575,2]
[408881773,1774384239614,-9401.0,0.00015753,2]
[408881774,1774384239624,-13416.02426806,0.00015758,2]
[408881775,1774384239633,-1098.49906058,0.00015768,2]
[408881776,1774384239643,-235.68059533,0.0001577,2]
[408881777,1774384239654,-500.0,0.00015773,2]
[408881778,1774384239663,-504.19292087,0.00015773,2]
[408881779,1774384239673,-500.58525136,0.00015773,2]
[408881780,1774384239683,-500.0,0.00015773,2]
[408881781,1774384239692,-500.0,0.00015773,2]
[408881782,1774384239702,-500.0,0.00015773,2]
[408881783,1774384239711,-351.2418106,0.00015773,2]
[408881784,1774384239721,-500.0,0.00015773,2]
[408881785,1774384239731,-500.0,0.00015773,2]
[408881786,1774384239740,-500.0,0.00015773,2]
[408881787,1774384239751,-500.0,0.00015773,2]
[408881788,1774384239762,-500.86404044,0.00015773,2]
[408881789,1774384239772,-500.37949431,0.00015773,2]
[408881790,1774384239782,-500.0,0.00015773,2]
[408881791,1774384239793,-500.0,0.00015773,2]
[408881792,1774384239802,-500.0,0.00015773,2]
[408881793,1774384239812,-500.0,0.00015773,2]
[408881794,1774384239821,-500.0,0.00015773,2]
[408881795,1774384239832,-500.0,0.00015773,2]
[408881796,1774384239842,-151.0,0.00015777,2]
[408881797,1774384239852,-151.0,0.00015777,2]
[408881798,1774384239866,-500.0,0.00015779,2]
[408881799,1774384239876,-435.56481257,0.00015779,2]
[408881800,1774384239886,-500.0,0.00015779,2]
[408881801,1774384239896,-154.82251136,0.00015779,2]
[408881802,1774384239906,-500.0,0.00015779,2]
[408881803,1774384239916,-500.0,0.00015779,2]
[408881804,1774384239927,-500.0,0.00015779,2]
[408881805,1774384239938,-500.0,0.00015779,2]
[408881806,1774384239949,-500.0,0.00015779,2]
[408881807,1774384239959,-500.0,0.00015779,2]
[408881808,1774384239970,-207.8534478,0.00015779,2]
[408881809,1774384239980,-500.0,0.00015779,2]
[408881810,1774384239990,-500.0,0.00015779,2]
[408881811,1774384240000,-500.0,0.00015779,2]
[408881812,1774384240010,-623.11598405,0.00015779,2]
[408881813,1774384240021,-500.0,0.00015779,2]
[408881814,1774384240032,-500.0,0.00015779,2]
[408881815,1774384240043,-500.0,0.00015779,2]
[408881816,1774384240060,-500.0,0.00015779,2]
[408881817,1774384240071,-500.0,0.00015779,2]
[408881818,1774384240082,-500.0,0.00015779,2]
[408881819,1774384240093,-500.0,0.00015779,2]
[408881820,1774384240104,-161.59374025,0.00015779,2]
[408881821,1774384240118,-888.59,0.00015779,2]
[408881822,1774384240129,-500.0,0.00015779,2]
[408881823,1774384240140,-500.0,0.00015779,2]
[408881824,1774384240151,-500.0,0.00015779,2]
[408881825,1774384240162,-500.0,0.00015779,2]
[408881826,1774384240172,-500.0,0.00015779,2]
[408881827,1774384240183,-500.0,0.00015779,2]
[408881828,1774384240193,-500.0,0.00015779,2]
[408881829,1774384240204,-255.6572541,0.00015779,2]
[408881830,1774384240215,-500.0,0.00015779,2]
[408881831,1774384240227,-411.74553912,0.00015779,2]
[408881832,1774384240237,-725090.6675,0.0001578,2]
[408881833,1774384240247,-343058.57654738,0.0001578,2]
[408881838,1774384240363,-75.07129453,0.0001578,2]
[408881839,1774384240882,-31876.59021943,0.0001578,2]
[408881840,1774384240952,-42606.60035458,0.0001578,2]
[408881841,1774384241042,-24.35785257,0.0001578,2]
[408881842,1774384241054,-386.2319156,0.0001578,2]
[408881843,1774384241067,-253.07589561,0.0001578,2]
[408881844,1774384241867,-1081719.4959203,0.0001578,2]
[408881845,1774384241877,-13416.02426806,0.00015793,2]
[408881846,1774384241886,-172.24879032,0.00015797,2]
[408881847,1774384241897,-1619.82304396,0.00015797,2]
[408881848,1774384241906,-154.60882326,0.00015797,2]
[408881849,1774384241916,-7931.70487845,0.00015797,2]
[408881850,1774384241927,-200.0,0.000158,5]
[408881851,1774384241936,-4434.94,0.000158,2]
[408881852,1774384241946,-3717.82,0.000158,2]
[408881853,1774384241955,-1890.9617517,0.000158,2]
[408881854,1774384241964,-5888.0,0.00015803,2]
[408881855,1774384241973,-5888.0,0.00015808,2]
[408881856,1774384241986,-1098.49906058,0.00015812,2]
[408881857,1774384241995,-1008.47953738,0.00015821,2]
[408881858,1774384242004,-1000.45556563,0.00015821,2]
[408881859,1774384242014,-1000.0,0.00015821,2]
[408881860,1774384242024,-1000.0,0.00015821,2]
[408881861,1774384242034,-1000.0,0.00015821,2]
[408881862,1774384242043,-1000.0,0.00015821,2]
[408881863,1774384242053,-14339.95590367,0.00015822,2]
[408881864,1774384242062,-168.0,0.00015824,2]
[408881865,1774384242072,-13416.02426806,0.00015829,2]
[408881866,1774384242081,-168.0,0.00015837,2]
[408881867,1774384242091,-150.0,0.00015839,2]
[408881868,1774384242101,-479.14337,0.0001584,2]
[408881869,1774384242113,-479.14337,0.0001584,2]
[408881870,1774384242123,-479.14337,0.0001584,2]
[408881871,1774384242133,-168.0,0.00015844,2]
[408881872,1774384242143,-150.0,0.00015849,2]
[408881873,1774384242152,-168.0,0.0001585,2]
[408881874,1774384242163,-1098.49906058,0.00015856,2]
[408881875,1774384242172,-13416.02426806,0.00015864,2]
[408881876,1774384242182,-500.0,0.00015873,2]
[408881877,1774384242195,-500.0,0.00015873,2]
[408881878,1774384242205,-500.0,0.00015873,2]
[408881879,1774384242215,-500.7456305,0.00015873,2]
[408881880,1774384242224,-102786.97854342,0.0001588,2]
[408881881,1774384242238,-1048.77559527,0.0001589,2]
[408881882,1774384242247,-4000.0,0.00015895,2]
[408881883,1774384242256,-32991.3775,0.000159,2]
[408881884,1774384242266,-10000.0,0.000159,2]
[408881885,1774384242276,-2414.1,0.000159,2]
[408881886,1774384242285,-209551.90367628,0.000159,2]
[408881887,1774384242295,-13416.02426806,0.000159,2]
[408881888,1774384242305,-579.0,0.000159,5]
[408881889,1774384242314,-40976.14719327,0.000159,2]
[408881890,1774384242323,-1619.82304396,0.000159,2]
[408881891,1774384242332,-172.24879032,0.000159,2]
[408881892,1774384242342,-14339.95590367,0.000159,2]
[408881893,1774384242351,-154.60882326,0.000159,2]
[408881894,1774384242360,-7931.70487845,0.000159,2]
[408881895,1774384242370,-1098.49906058,0.000159,2]
[408881896,1774384242380,-2000.0,0.000159,2]
[408881897,1774384242389,-1917.0,0.000159,5]
[408881898,1774384242399,-1322.0,0.000159,5]
[408881899,1774384242408,-2000.0,0.000159,2]
[408881900,1774384242418,-150.0,0.00015908,2]
[408881901,1774384242427,-3320.0,0.00015921,2]
[408881902,1774384242437,-150.0,0.00015936,2]
[408881903,1774384242446,-154.80716128,0.00015956,2]
[408881904,1774384242456,-260.839891,0.00015957,7]
[408881905,1774384242466,-150.0,0.00015958,2]
[408881906,1774384242476,-3625.57747866,0.0001596,2]
[408881907,1774384242487,-150.0,0.00015966,2]
[408881908,1774384242497,-190.63003853,0.00015968,2]
[408881909,1774384242506,-168.0,0.00015969,2]
[408881910,1774384242515,-400.0,0.0001597,2]
[408881911,1774384242525,-400.0,0.0001597,2]
[408881912,1774384242535,-400.0,0.0001597,2]
[408881913,1774384242544,-400.0,0.0001597,2]
[408881914,1774384242554,-500.0,0.00015973,2]
[408881915,1774384242564,-500.0,0.00015973,2]
[408881916,1774384242575,-500.0,0.00015973,2]
[408881917,1774384242585,-500.0,0.00015973,2]
[408881918,1774384242595,-500.0,0.00015973,2]
[408881919,1774384242605,-500.0,0.00015973,2]
[408881920,1774384242614,-500.83207171,0.00015973,2]
[408881921,1774384242624,-500.0,0.00015973,2]
[408881922,1774384242633,-500.0,0.00015973,2]
[408881923,1774384242643,-500.0,0.00015973,2]
[408881924,1774384242652,-500.0,0.00015973,2]
[408881925,1774384242662,-500.70382414,0.00015973,2]
[408881926,1774384242671,-500.0,0.00015973,2]
[408881927,1774384242680,-500.0,0.00015973,2]
[408881928,1774384242690,-500.0,0.00015973,2]
[408881929,1774384242700,-171.261954,0.00015974,7]
[408881930,1774384242709,-235.68059533,0.0001599,2]
[408881931,1774384242719,-235.68059533,0.0001599,2]
[408881932,1774384242728,-165.37599819,0.00015996,3]
[408881933,1774384242738,-151.0,0.00015997,2]
[408881934,1774384242748,-178.74260496,0.00015997,2]
[408881935,1774384242757,-666.0,0.00015999,2]
[408881936,1774384242767,-90019.5798882,0.00015999,2]
[408881937,1774384242776,-1474.6895292,0.00015999,2]
[408881938,1774384242786,-2235708.70891152,0.00016,2]
[408881939,1774384242796,-150.0,0.00016,2]
[408881940,1774384242806,-1055.26389071,0.00016,2]
[408881941,1774384242815,-150.0,0.00016,2]
[408881942,1774384242825,-11927.81455881,0.00016,2]
[408881943,1774384242835,-1000.0,0.00016,2]
[408881944,1774384242845,-1372444.9657061,0.00016,2]
[408881959,1774384243402,-161.20913194,0.00015164,2]
[408881960,1774384243413,-342.67769307,0.0001568,2]
[408881961,1774384244531,-75.70993759,0.0001568,2]
[408881962,1774384244540,-44420.39152616,0.00016,2]
[408881963,1774384244551,-2722.93999999,0.00016,2]
[408881964,1774384244647,-477.34021707,0.00016,2]
[408881965,1774384244759,-4799.5887045,0.00016,2]
[408881976,1774384246324,-500.0,0.00015779,2]
[408881977,1774384246382,-531.3420411,0.00015779,2]
[408881978,1774384246392,-2317.52499886,0.00016,2]
[408881979,1774384246404,-693.43,0.00016,2]
[408881980,1774384246440,-12971.43076122,0.00016,2]
[408881981,1774384246451,-268.8875,0.00016,2]
[408882000,1774384420523,150.76,7.296e-05,2]
[408882001,1774384420729,150.76,8.026e-05,2]
[408882002,1774384420931,150.76,8.756e-05,2]
[408882003,1774384421134,150.76,9.485e-05,2]
[408882004,1774384421326,150.76,0.00010215,2]
[408882005,1774384421522,150.76,0.00010945,2]
[408882006,1774384421731,150.76,0.00011674,2]
[408882008,1774384858236,1537.65,0.00011507,2]
[408882009,1774385348155,-150.76,0.00012404,2]
[408882010,1774385365099,-250.0,0.00013,2]
[408882011,1774385365119,-150.76,0.00013134,2]
[408882012,1774385365141,-413.84,0.00013355,2]
[408882013,1774385365160,-416.77475174,0.00013355,2]
[408882014,1774385431416,-724.69855807,0.00013355,2]
[408882015,1774385431428,-158.21669019,0.00013355,2]
[408882016,1774385431438,-166.66,0.00013587,2]
[408882017,1774385431450,-173.73147692,0.00013644,2]
[408882018,1774385431462,-76.26852308,0.00013644,2]
[408882019,1774385431471,-250.0,0.00013644,2]
[408882020,1774385431481,-168.47,0.00013699,2]
[408882021,1774385431492,-842.36,0.00013699,2]
[408882022,1774385431502,-150.76,0.00013863,2]
[408882023,1774385431511,-166.66,0.00013873,2]
[408882024,1774385431523,-200.0,0.00013913,2]
[408882025,1774385431532,-237.7,0.00013979,2]
[408882026,1774385431542,-523.0,0.0001399,2]
[408882027,1774385431552,-158.0,0.0001399,2]
[408882028,1774385431561,-512.0,0.00014,2]
[408882029,1774385431571,-251.62,0.00014002,2]
[408882030,1774385431581,-254.0,0.00014022,2]
[408882031,1774385431591,-150.0,0.00014046,2]
[408882033,1774385431600,-951.65214941,0.00014058,2]
[408882036,1774385431618,-248.34785059,0.00014058,2]
[408882038,1774385431627,-169.0,0.00014059,2]
[408882040,1774385431636,-65.17472691,0.00014059,2]
[408882041,1774385431648,-150.82527309,0.00014059,2]
[408882042,1774385431658,-413.84,0.00014097,2]
[408882043,1774385431668,-166.66,0.00014159,2]
[408882044,1774385431677,-411.79522807,0.00014225,2]
[408882045,1774385431696,-59588.20477193,0.00014225,2]
[408882046,1774385431705,-300.0,0.0001439,2]
[408882047,1774385431714,-300.0,0.0001439,2]
[408882048,1774385431723,-200.0,0.00014391,2]
[408882049,1774385431733,-500.0,0.00014391,2]
[408882050,1774385431743,-162.73195103,0.00014391,2]
[408882051,1774385431752,-233.20791569,0.00014391,2]
[408882052,1774385431761,-1568.0,0.000144,2]
[408882053,1774385431770,-150.0,0.00014445,2]
[408882054,1774385431779,-166.66,0.00014445,2]
[408882055,1774385431789,-150.76,0.00014593,2]
[408882056,1774385431800,-972.34,0.00014701,2]
[408882057,1774385431810,-3096.79,0.00014719,2]
[408882058,1774385431819,-985.0,0.0001472,2]
[408882059,1774385431828,-166.66,0.00014731,2]
[408882060,1774385431838,-805.94639476,0.00014785,2]
[408882061,1774385431847,-300.0,0.000148,5]
[408882062,1774385431857,-413.84,0.00014839,2]
[408882063,1774385431866,-1000.0,0.0001486,2]
[408882064,1774385431875,-108557.15092537,0.00014861,2]
[408882065,1774385431886,-4684.75760546,0.00014861,2]
[408882074,1774385437448,-315.75409,0.00013975,2]
[408882075,1774385437459,-626433.14396917,0.00014861,2]
[408882076,1774385437468,-1369.35670876,0.00014872,2]
[408882077,1774385437477,-500.0,0.00014873,2]
[408882078,1774385437487,-500.0,0.00014873,2]
[408882079,1774385437495,-500.0,0.00014873,2]
[408882080,1774385437504,-500.0,0.00014873,2]
[408882081,1774385437514,-500.0,0.00014873,2]
[408882082,1774385437523,-700.0,0.000149,5]
[408882083,1774385437532,-1369.35670874,0.00014922,2]
[408882084,1774385437542,-200.0,0.00014939,2]
[408882085,1774385437551,-805.94639469,0.00014944,2]
[408882086,1774385437560,-214.4442,0.00014961,2]
[408882087,1774385437569,-5000.0,0.00014961,2]
[408882088,1774385437579,-2500.0,0.00014961,2]
[408882089,1774385437599,-343142.2254,0.00014961,2]
[408882090,1774385437613,-12971.99212028,0.00014972,2]
[408882091,1774385437622,-1369.35670874,0.00014972,2]
[408882092,1774385437631,-278.92508712,0.00014972,2]
[408882093,1774385437641,-500.0,0.00014972,2]
[408882094,1774385437650,-571.22691108,0.00014973,2]
[408882095,1774385437660,-300.0,0.00015,2]
[408882096,1774385437669,-500.0,0.00015,2]
[408882097,1774385437678,-154.29462543,0.00015017,2]
[408882098,1774385437687,-166.66,0.00015017,2]
[408882099,1774385437696,-809.0,0.00015043,2]
[408882100,1774385437706,-202.64239025,0.00015051,2]
[408882101,1774385437715,-888.59,0.0001506,2]
[408882102,1774385437724,-500.0,0.0001506,2]
[408882103,1774385437734,-500.0,0.0001506,2]
[408882104,1774385437744,-500.0,0.0001506,2]